Workbook

Sheet In te vullen voorblad
A7: Opgelet | B7: Gelieve dit voorblad in te vullen identiek zoals in het plattelandsloket
A8: Datum aanvraag: | B8: =TODAY() -> 2022-12-20
A10: Gegevens project
A12: Projectnaam: | B12: ……………………………………
A13: Projectcode:
A14: Budgetjaar: | B14: ……………………………………
A15: Overhead% bij personeelskosten | B15: 0.15 | C15: Opgelet: overheadpercentage moet exact gelijk zijn aan het goedgekeurde %
A17: Gegevens projectpromotor
A19: Naam: | B19: XXXXX | C19: Opgelet: de schrijfwijze van de naam van de promotor moet exact overeenkomen met de schrijfwijze in het e-loket
A20: Adres: | B20: ……………………………………
A21: Contactpersoon: | B21: ……………………………………
A22: Telefoon: | B22: ……………………………………
A23: Email: | B23: ……………………………………
A24: Rekeningnummer: | B24: ……………………………………
A26: (Indien van toepassing) Naam copromotoren invullen | C26: Opgelet: de schrijfwijze van de namen van de copromotoren moet exact overeenkomen met de schrijfwijze in het e-loket
A28: Copromotor 1 | B28: ……………………………………
A29: Copromotor 2 | B29: ……………………………………
A30: Copromotor 3 | B30: ……………………………………
A31: Copromotor 4 | B31: ……………………………………
A32: Copromotor 5 | B32: ……………………………………
A35: Ondergetekende, (naam) | B35: …………………………………… | C35: projectpromotor van project (naam project) ………………………….....
A36: verklaart hierbij dat bijgevoegde facturen betrekking hebben op projectcode LEA20/……………………..
A37: en dat de aangevraagde subsidie het maximum van de goedgekeurde subsidie niet overschrijdt.
A38: De aangevraagde Europese, Vlaamse en provinciale cofinanciering mag uitbetaald worden.
A39: Datum
A41: ………………………………………………………….

Sheet facturen-kosten
B1: Projectnaam | D1: ='In te vullen voorblad'!B12 -> …………………………………… | J1: Rubrieken | K1: ingediende kost | L1: Promotor/ copromotor | N1: ingediende kost
B2: Projectpromotor | D2: ='In te vullen voorblad'!B19 -> XXXXX | F2: Toelichting bij het gebruik van de knop 'Facturen Json (bulk)': Door het klikken op deze knop worden de gegevens op dit blad gekopieerd (rij 13 tot einde van tabel). Deze gegevens kunnen met behulp van de toetsencombinatie CTRL+V geplakt worden in het pop-upvenster in het e-loket (bij gebruik van de knop 'Facturen Json (bulk)' in het loket). Opgelet: Hiermee worden geen andere tabbladen of gegevens van dit bestand gekopieerd naar het loket. Als de knop niet werkt staat er wellicht bovenaan een opmerking i.v.m. 'inhoud inschakelen' (deze moet eerst ingeschakeld worden) of werkt het niet in deze Excelversie (facturen kunnen dan individueel ingegeven worden in het loket). | J2: ='.'!C3 -> Investeringskosten | K2: =SUMIF(J:J,J2,I:I) -> 0 | L2: ='In te vullen voorblad'!B19 -> XXXXX | N2: =SUMIF(K:K,L2,I:I) -> 1000
B3: Projectnummer | D3: ='In te vullen voorblad'!B13 -> 0 | J3: ='.'!C4 -> Personeelskosten | K3: 1000 | L3: ='In te vullen voorblad'!B28 -> …………………………………… | N3: 0
B4: Budgetjaar | D4: ='In te vullen voorblad'!B14 -> …………………………………… | J4: ='.'!C5 -> Werkingskosten | K4: 0 | L4: ='In te vullen voorblad'!B29 -> …………………………………… | N4: 0
B5: Overhead% | D5: ='In te vullen voorblad'!B15 -> 0.15 | J5: ='.'!C6 -> Externe prestaties | K5: 0 | L5: ='In te vullen voorblad'!B30 -> …………………………………… | N5: 0
J6: ='.'!C7 -> Bijdrage in natura | K6: 0 | L6: ='In te vullen voorblad'!B31 -> …………………………………… | N6: 0
J7: ='.'!C8 -> Inkomsten | K7: 0 | L7: ='In te vullen voorblad'!B32 -> …………………………………… | N7: 0
J9: Totaal | K9: =SUM(K2+K3+K4+K5+K6+K7) -> 1000
A11: Volgnr | B11: Boekhoud- kundig nummer van de factuur | C11: Naam leverancier / naam personeelslid | D11: Onderwerp van de uitgave | E11: FactuurDatum / Periode start | F11: Periode einddatum | G11: TotaalBedrag | H11: Percentage dat het bedrag meetelt | I11: Aangevraagd project-bedrag | J11: rubriek ( in te vullen door een rubriek te selecteren , niet manueel intypen!!) | K11: Aan wie is de factuur gericht promotor of copromotoren? (naam (co-)promotor selecteren of blanco indien promotor) | L11: % Cofinanciering (max 65%) | M11: totale cofinanc (totale overheidssteun) | N11: Overhead Bedrag
A12: VolgNummer | B12: BoekhoudkundigNummer | C12: Leverancier | D12: Onderwerp | E12: FactuurPeriodeStartString | F12: FactuurPeriodeEindString | G12: TotaalBedrag | H12: MeetelPercentage | I12: AangevraagdProjectbedrag | J12: KostenCategorie | K12: Promotor | L12: CofinancieringPercentage | M12: TotaleCofinanciering | N12: OverheadBedrag
G13: 1000 | H13: 1 | I13: =G13*H13 -> 1000 | J13: Personeelskosten | K13: XXXXX | L13: 0.65 | M13: =I13*L13 -> 650 | N13: =IF(J13="Personeelskosten",M13*D$5,0) -> 97.5
I14: 0 | M14: =I14*L14 -> 0 | N14: 0
I15: 0 | M15: 0 | N15: 0
I16: 0 | M16: 0 | N16: 0
I17: 0 | M17: =I17*L17 -> 0 | N17: 0
I18: 0 | M18: 0 | N18: 0
I19: 0 | M19: =I19*L19 -> 0 | N19: 0
I20: 0 | M20: 0 | N20: 0
I21: 0 | M21: 0 | N21: 0
I22: 0 | M22: 0 | N22: 0
I23: 0 | M23: =I23*L23 -> 0 | N23: 0
I24: 0 | M24: 0 | N24: 0
I25: 0 | M25: 0 | N25: 0
I26: 0 | M26: 0 | N26: 0
I27: 0 | M27: 0 | N27: 0
I28: 0 | M28: 0 | N28: 0
I29: 0 | M29: 0 | N29: 0
I30: 0 | M30: 0 | N30: 0
I31: 0 | M31: 0 | N31: 0
I32: 0 | M32: 0 | N32: 0
A33: Totaal | G33: =SUM(G13:G32) -> 1000 | I33: =SUM(I13:I32) -> 1000 | M33: =SUM(M13:M32) -> 650 | N33: =SUM(N13:N32) -> 97.5

Sheet loonberek invullen promotor
A1: Sjabloon loonberekening
A7: Projectcode | B7: ='In te vullen voorblad'!B13 -> 0
A8: Naam van het project | B8: ='In te vullen voorblad'!B12 -> ……………………………………
A10: Het donkergroene vak overnemen in het tabblad facturen
A11: Naam personeelslid | B11: Voltijds brutoloon (5/5) | C11: De overeenkomstige dagkost | D11: Looncode | E11: Indien de looncode gekend is , vul die hier in | F11: maand + jaartal | G11: aantal halve dagen in die maand gewerkt aan het project | H11: In te brengen personeelskost
C13: =IF(E13=0,+IF(B13="","",+IF(B13<2239.36,198.17,IF(B13>=2239.36,VLOOKUP(B13,'waarden lonen'!C:K,9,TRUE)))),VLOOKUP(E13,'waarden lonen'!loonwijzer,11)) ->  | D13: =IF(E13=0,+IF(C13="","",VLOOKUP(C13,'waarden lonen'!K:L,2,FALSE)),"") ->  | H13: =+IF(C13="","",(G13/2)*C13) -> 
C14: =IF(E14=0,+IF(B14="","",+IF(B14<2239.36,198.17,IF(B14>=2239.36,VLOOKUP(B14,'waarden lonen'!C:K,9,TRUE)))),VLOOKUP(E14,'waarden lonen'!loonwijzer,11)) ->  | D14: =IF(E14=0,+IF(C14="","",VLOOKUP(C14,'waarden lonen'!K:L,2,FALSE)),"") ->  | H14: =+IF(C14="","",(G14/2)*C14) -> 
C15: =IF(E15=0,+IF(B15="","",+IF(B15<2239.36,198.17,IF(B15>=2239.36,VLOOKUP(B15,'waarden lonen'!C:K,9,TRUE)))),VLOOKUP(E15,'waarden lonen'!loonwijzer,11)) ->  | D15: =IF(E15=0,+IF(C15="","",VLOOKUP(C15,'waarden lonen'!K:L,2,FALSE)),"") -> 
C16: =IF(E16=0,+IF(B16="","",+IF(B16<2239.36,198.17,IF(B16>=2239.36,VLOOKUP(B16,'waarden lonen'!C:K,9,TRUE)))),VLOOKUP(E16,'waarden lonen'!loonwijzer,11)) ->  | D16: =IF(E16=0,+IF(C16="","",VLOOKUP(C16,'waarden lonen'!K:L,2,FALSE)),"") -> 
C17: =IF(E17=0,+IF(B17="","",+IF(B17<2239.36,198.17,IF(B17>=2239.36,VLOOKUP(B17,'waarden lonen'!C:K,9,TRUE)))),VLOOKUP(E17,'waarden lonen'!loonwijzer,11)) ->  | D17: =IF(E17=0,+IF(C17="","",VLOOKUP(C17,'waarden lonen'!K:L,2,FALSE)),"") -> 
C18: =IF(E18=0,+IF(B18="","",+IF(B18<2239.36,198.17,IF(B18>=2239.36,VLOOKUP(B18,'waarden lonen'!C:K,9,TRUE)))),VLOOKUP(E18,'waarden lonen'!loonwijzer,11)) ->  | D18: =IF(E18=0,+IF(C18="","",VLOOKUP(C18,'waarden lonen'!K:L,2,FALSE)),"") -> 
C19: =IF(E19=0,+IF(B19="","",+IF(B19<2239.36,198.17,IF(B19>=2239.36,VLOOKUP(B19,'waarden lonen'!C:K,9,TRUE)))),VLOOKUP(E19,'waarden lonen'!loonwijzer,11)) ->  | D19: =IF(E19=0,+IF(C19="","",VLOOKUP(C19,'waarden lonen'!K:L,2,FALSE)),"") -> 
A20: Totale loonkost - het totaal bedrag per persoon overnemen in de overzichtslijst met facturen / kosten | H20: =SUM(H13:H19) -> 0
C21: =IF(E21=0,+IF(B21="","",+IF(B21<2239.36,198.17,IF(B21>=2239.36,VLOOKUP(B21,'waarden lonen'!C:K,9,TRUE)))),VLOOKUP(E21,'waarden lonen'!loonwijzer,11)) ->  | D21: =IF(E21=0,+IF(C21="","",VLOOKUP(C21,'waarden lonen'!K:L,2,FALSE)),"") ->  | H21: =+IF(C21="","",(G21/2)*C21) -> 
C22: =IF(E22=0,+IF(B22="","",+IF(B22<2239.36,198.17,IF(B22>=2239.36,VLOOKUP(B22,'waarden lonen'!C:K,9,TRUE)))),VLOOKUP(E22,'waarden lonen'!loonwijzer,11)) ->  | D22: =IF(E22=0,+IF(C22="","",VLOOKUP(C22,'waarden lonen'!K:L,2,FALSE)),"") -> 
C23: =IF(E23=0,+IF(B23="","",+IF(B23<2239.36,198.17,IF(B23>=2239.36,VLOOKUP(B23,'waarden lonen'!C:K,9,TRUE)))),VLOOKUP(E23,'waarden lonen'!loonwijzer,11)) -> 
C24: =IF(E24=0,+IF(B24="","",+IF(B24<2239.36,198.17,IF(B24>=2239.36,VLOOKUP(B24,'waarden lonen'!C:K,9,TRUE)))),VLOOKUP(E24,'waarden lonen'!loonwijzer,11)) ->  | D24: =IF(E24=0,+IF(C24="","",VLOOKUP(C24,'waarden lonen'!K:L,2,FALSE)),"") -> 
C25: =IF(E25=0,+IF(B25="","",+IF(B25<2239.36,198.17,IF(B25>=2239.36,VLOOKUP(B25,'waarden lonen'!C:K,9,TRUE)))),VLOOKUP(E25,'waarden lonen'!loonwijzer,11)) ->  | D25: =IF(E25=0,+IF(C25="","",VLOOKUP(C25,'waarden lonen'!K:L,2,FALSE)),"") -> 
C26: =IF(E26=0,+IF(B26="","",+IF(B26<2239.36,198.17,IF(B26>=2239.36,VLOOKUP(B26,'waarden lonen'!C:K,9,TRUE)))),VLOOKUP(E26,'waarden lonen'!loonwijzer,11)) ->  | D26: =IF(E26=0,+IF(C26="","",VLOOKUP(C26,'waarden lonen'!K:L,2,FALSE)),"") -> 
C27: =IF(E27=0,+IF(B27="","",+IF(B27<2239.36,198.17,IF(B27>=2239.36,VLOOKUP(B27,'waarden lonen'!C:K,9,TRUE)))),VLOOKUP(E27,'waarden lonen'!loonwijzer,11)) ->  | D27: =IF(E27=0,+IF(C27="","",VLOOKUP(C27,'waarden lonen'!K:L,2,FALSE)),"") -> 
A28: Totale loonkost - het totaal bedrag per persoon overnemen in de overzichtslijst met facturen / kosten | H28: =SUM(H21:H27) -> 0
C29: =IF(E29=0,+IF(B29="","",+IF(B29<2239.36,198.17,IF(B29>=2239.36,VLOOKUP(B29,'waarden lonen'!C:K,9,TRUE)))),VLOOKUP(E29,'waarden lonen'!loonwijzer,11)) ->  | D29: =IF(E29=0,+IF(C29="","",VLOOKUP(C29,'waarden lonen'!K:L,2,FALSE)),"") ->  | H29: =+IF(C29="","",(G29/2)*C29) -> 
C30: =IF(E30=0,+IF(B30="","",+IF(B30<2239.36,198.17,IF(B30>=2239.36,VLOOKUP(B30,'waarden lonen'!C:K,9,TRUE)))),VLOOKUP(E30,'waarden lonen'!loonwijzer,11)) ->  | D30: =IF(E30=0,+IF(C30="","",VLOOKUP(C30,'waarden lonen'!K:L,2,FALSE)),"") -> 
C31: =IF(E31=0,+IF(B31="","",+IF(B31<2239.36,198.17,IF(B31>=2239.36,VLOOKUP(B31,'waarden lonen'!C:K,9,TRUE)))),VLOOKUP(E31,'waarden lonen'!loonwijzer,11)) -> 
C32: =IF(E32=0,+IF(B32="","",+IF(B32<2239.36,198.17,IF(B32>=2239.36,VLOOKUP(B32,'waarden lonen'!C:K,9,TRUE)))),VLOOKUP(E32,'waarden lonen'!loonwijzer,11)) ->  | D32: =IF(E32=0,+IF(C32="","",VLOOKUP(C32,'waarden lonen'!K:L,2,FALSE)),"") -> 
C33: =IF(E33=0,+IF(B33="","",+IF(B33<2239.36,198.17,IF(B33>=2239.36,VLOOKUP(B33,'waarden lonen'!C:K,9,TRUE)))),VLOOKUP(E33,'waarden lonen'!loonwijzer,11)) ->  | D33: =IF(E33=0,+IF(C33="","",VLOOKUP(C33,'waarden lonen'!K:L,2,FALSE)),"") -> 
C34: =IF(E34=0,+IF(B34="","",+IF(B34<2239.36,198.17,IF(B34>=2239.36,VLOOKUP(B34,'waarden lonen'!C:K,9,TRUE)))),VLOOKUP(E34,'waarden lonen'!loonwijzer,11)) ->  | D34: =IF(E34=0,+IF(C34="","",VLOOKUP(C34,'waarden lonen'!K:L,2,FALSE)),"") -> 
C35: =IF(E35=0,+IF(B35="","",+IF(B35<2239.36,198.17,IF(B35>=2239.36,VLOOKUP(B35,'waarden lonen'!C:K,9,TRUE)))),VLOOKUP(E35,'waarden lonen'!loonwijzer,11)) ->  | D35: =IF(E35=0,+IF(C35="","",VLOOKUP(C35,'waarden lonen'!K:L,2,FALSE)),"") -> 
A36: Totale loonkost - het totaal bedrag per persoon overnemen in de overzichtslijst met facturen / kosten | H36: =SUM(H29:H35) -> 0
C37: =IF(E37=0,+IF(B37="","",+IF(B37<2239.36,198.17,IF(B37>=2239.36,VLOOKUP(B37,'waarden lonen'!C:K,9,TRUE)))),VLOOKUP(E37,'waarden lonen'!loonwijzer,11)) ->  | D37: =IF(E37=0,+IF(C37="","",VLOOKUP(C37,'waarden lonen'!K:L,2,FALSE)),"") ->  | H37: =+IF(C37="","",(G37/2)*C37) -> 
C38: =IF(E38=0,+IF(B38="","",+IF(B38<2239.36,198.17,IF(B38>=2239.36,VLOOKUP(B38,'waarden lonen'!C:K,9,TRUE)))),VLOOKUP(E38,'waarden lonen'!loonwijzer,11)) ->  | D38: =IF(E38=0,+IF(C38="","",VLOOKUP(C38,'waarden lonen'!K:L,2,FALSE)),"") -> 
C39: =IF(E39=0,+IF(B39="","",+IF(B39<2239.36,198.17,IF(B39>=2239.36,VLOOKUP(B39,'waarden lonen'!C:K,9,TRUE)))),VLOOKUP(E39,'waarden lonen'!loonwijzer,11)) ->  | D39: =IF(E39=0,+IF(C39="","",VLOOKUP(C39,'waarden lonen'!K:L,2,FALSE)),"") -> 
C40: =IF(E40=0,+IF(B40="","",+IF(B40<2239.36,198.17,IF(B40>=2239.36,VLOOKUP(B40,'waarden lonen'!C:K,9,TRUE)))),VLOOKUP(E40,'waarden lonen'!loonwijzer,11)) ->  | D40: =IF(E40=0,+IF(C40="","",VLOOKUP(C40,'waarden lonen'!K:L,2,FALSE)),"") -> 
C41: =IF(E41=0,+IF(B41="","",+IF(B41<2239.36,198.17,IF(B41>=2239.36,VLOOKUP(B41,'waarden lonen'!C:K,9,TRUE)))),VLOOKUP(E41,'waarden lonen'!loonwijzer,11)) ->  | D41: =IF(E41=0,+IF(C41="","",VLOOKUP(C41,'waarden lonen'!K:L,2,FALSE)),"") -> 
C42: =IF(E42=0,+IF(B42="","",+IF(B42<2239.36,198.17,IF(B42>=2239.36,VLOOKUP(B42,'waarden lonen'!C:K,9,TRUE)))),VLOOKUP(E42,'waarden lonen'!loonwijzer,11)) -> 
C43: =IF(E43=0,+IF(B43="","",+IF(B43<2239.36,198.17,IF(B43>=2239.36,VLOOKUP(B43,'waarden lonen'!C:K,9,TRUE)))),VLOOKUP(E43,'waarden lonen'!loonwijzer,11)) ->  | D43: =IF(E43=0,+IF(C43="","",VLOOKUP(C43,'waarden lonen'!K:L,2,FALSE)),"") -> 
A44: Totale loonkost - het totaal bedrag per persoon overnemen in de overzichtslijst met facturen / kosten | H44: =SUM(H37:H43) -> 0
C45: =IF(E45=0,+IF(B45="","",+IF(B45<2239.36,198.17,IF(B45>=2239.36,VLOOKUP(B45,'waarden lonen'!C:K,9,TRUE)))),VLOOKUP(E45,'waarden lonen'!loonwijzer,11)) ->  | D45: =IF(E45=0,+IF(C45="","",VLOOKUP(C45,'waarden lonen'!K:L,2,FALSE)),"") ->  | H45: =+IF(C45="","",(G45/2)*C45) -> 
C46: =IF(E46=0,+IF(B46="","",+IF(B46<2239.36,198.17,IF(B46>=2239.36,VLOOKUP(B46,'waarden lonen'!C:K,9,TRUE)))),VLOOKUP(E46,'waarden lonen'!loonwijzer,11)) ->  | D46: =IF(E46=0,+IF(C46="","",VLOOKUP(C46,'waarden lonen'!K:L,2,FALSE)),"") -> 
C47: =IF(E47=0,+IF(B47="","",+IF(B47<2239.36,198.17,IF(B47>=2239.36,VLOOKUP(B47,'waarden lonen'!C:K,9,TRUE)))),VLOOKUP(E47,'waarden lonen'!loonwijzer,11)) ->  | D47: =IF(E47=0,+IF(C47="","",VLOOKUP(C47,'waarden lonen'!K:L,2,FALSE)),"") -> 
C48: =IF(E48=0,+IF(B48="","",+IF(B48<2239.36,198.17,IF(B48>=2239.36,VLOOKUP(B48,'waarden lonen'!C:K,9,TRUE)))),VLOOKUP(E48,'waarden lonen'!loonwijzer,11)) ->  | D48: =IF(E48=0,+IF(C48="","",VLOOKUP(C48,'waarden lonen'!K:L,2,FALSE)),"") -> 
C49: =IF(E49=0,+IF(B49="","",+IF(B49<2239.36,198.17,IF(B49>=2239.36,VLOOKUP(B49,'waarden lonen'!C:K,9,TRUE)))),VLOOKUP(E49,'waarden lonen'!loonwijzer,11)) ->  | D49: =IF(E49=0,+IF(C49="","",VLOOKUP(C49,'waarden lonen'!K:L,2,FALSE)),"") -> 
C50: =IF(E50=0,+IF(B50="","",+IF(B50<2239.36,198.17,IF(B50>=2239.36,VLOOKUP(B50,'waarden lonen'!C:K,9,TRUE)))),VLOOKUP(E50,'waarden lonen'!loonwijzer,11)) ->  | D50: =IF(E50=0,+IF(C50="","",VLOOKUP(C50,'waarden lonen'!K:L,2,FALSE)),"") -> 
C51: =IF(E51=0,+IF(B51="","",+IF(B51<2239.36,198.17,IF(B51>=2239.36,VLOOKUP(B51,'waarden lonen'!C:K,9,TRUE)))),VLOOKUP(E51,'waarden lonen'!loonwijzer,11)) ->  | D51: =IF(E51=0,+IF(C51="","",VLOOKUP(C51,'waarden lonen'!K:L,2,FALSE)),"") -> 
A52: Totale loonkost - het totaal bedrag per persoon overnemen in de overzichtslijst met facturen / kosten | H52: =SUM(H45:H51) -> 0
C53: =IF(E53=0,+IF(B53="","",+IF(B53<2239.36,198.17,IF(B53>=2239.36,VLOOKUP(B53,'waarden lonen'!C:K,9,TRUE)))),VLOOKUP(E53,'waarden lonen'!loonwijzer,11)) ->  | D53: =IF(E53=0,+IF(C53="","",VLOOKUP(C53,'waarden lonen'!K:L,2,FALSE)),"") ->  | H53: =+IF(C53="","",(G53/2)*C53) -> 
C54: =IF(E54=0,+IF(B54="","",+IF(B54<2239.36,198.17,IF(B54>=2239.36,VLOOKUP(B54,'waarden lonen'!C:K,9,TRUE)))),VLOOKUP(E54,'waarden lonen'!loonwijzer,11)) ->  | D54: =IF(E54=0,+IF(C54="","",VLOOKUP(C54,'waarden lonen'!K:L,2,FALSE)),"") -> 
C55: =IF(E55=0,+IF(B55="","",+IF(B55<2239.36,198.17,IF(B55>=2239.36,VLOOKUP(B55,'waarden lonen'!C:K,9,TRUE)))),VLOOKUP(E55,'waarden lonen'!loonwijzer,11)) ->  | D55: =IF(E55=0,+IF(C55="","",VLOOKUP(C55,'waarden lonen'!K:L,2,FALSE)),"") -> 
C56: =IF(E56=0,+IF(B56="","",+IF(B56<2239.36,198.17,IF(B56>=2239.36,VLOOKUP(B56,'waarden lonen'!C:K,9,TRUE)))),VLOOKUP(E56,'waarden lonen'!loonwijzer,11)) ->  | D56: =IF(E56=0,+IF(C56="","",VLOOKUP(C56,'waarden lonen'!K:L,2,FALSE)),"") -> 
C57: =IF(E57=0,+IF(B57="","",+IF(B57<2239.36,198.17,IF(B57>=2239.36,VLOOKUP(B57,'waarden lonen'!C:K,9,TRUE)))),VLOOKUP(E57,'waarden lonen'!loonwijzer,11)) ->  | D57: =IF(E57=0,+IF(C57="","",VLOOKUP(C57,'waarden lonen'!K:L,2,FALSE)),"") -> 
C58: =IF(E58=0,+IF(B58="","",+IF(B58<2239.36,198.17,IF(B58>=2239.36,VLOOKUP(B58,'waarden lonen'!C:K,9,TRUE)))),VLOOKUP(E58,'waarden lonen'!loonwijzer,11)) ->  | D58: =IF(E58=0,+IF(C58="","",VLOOKUP(C58,'waarden lonen'!K:L,2,FALSE)),"") -> 
C59: =IF(E59=0,+IF(B59="","",+IF(B59<2239.36,198.17,IF(B59>=2239.36,VLOOKUP(B59,'waarden lonen'!C:K,9,TRUE)))),VLOOKUP(E59,'waarden lonen'!loonwijzer,11)) ->  | D59: =IF(E59=0,+IF(C59="","",VLOOKUP(C59,'waarden lonen'!K:L,2,FALSE)),"") -> 
A60: Totale loonkost - het totaal bedrag per persoon overnemen in de overzichtslijst met facturen / kosten | H60: =SUM(H53:H59) -> 0

Sheet tijdsregist invullen promotor
A1: Sjabloon tijdsregistratie
A3: Projectcode | B3: ='In te vullen voorblad'!B13 -> 0
A4: Naam van het project | B4: ='In te vullen voorblad'!B12 -> ……………………………………
A6: Per personeelslid een sjabloon invullen.
A8: Enkel de groene velden invullen
A9: Naam personeelslid
A11: Korte omschrijving werkzaamheden per halve dag invullen | B11: dag | C11: maand | D11: jaartal | E11: 1= halve dag PDPO 0=niet PDPO
A53: Totaal aantal halve dagen gewerkt voor deze maand | E53: =SUM(E13:E52) -> 0

Sheet waarden lonen
A1: Standaard loontabel PDPO III te gebruiken vanaf 1 juli 2022
A2: Deze code gebruiken om in te vullen | C2: om te vergelijken met de loonfiche | K2: Kosten om te gebruiken bij declaratie (verlof, ziekte reeds verrekend in de dagkost)
A3: Loon-code | B3: Wedde | C3: Bruto maandloon | D3: Vakantie-geld | E3: Eindejaars-premie | F3: RSZ werkgever | G3: Verzekering AO | H3: Onkosten (weg - werk + thuiswerkvergoeding) | I3: Maaltijd-cheques | J3: Jaarkost | K3: Dagkost | L3: Loon-code
A4: A001 | B4: 26872.36 | C4: =B4/12 -> 2239.363333 | D4: 1881.39 | E4: 1806.72 | F4: 8787.270112 | G4: 170.1759772 | H4: =615.66+240 -> 855.66 | I4: 1241.1 | J4: =SUM(B4,D4:I4) -> 41614.67609 | K4: 198.17 | L4: A001
A5: A002 | B5: 29717.21 | C5: =B5/12 -> 2476.434167 | D5: 2073.16 | E5: 1990.88 | F5: 9715.358776 | G5: 188.1108906 | H5: =615.66+240 -> 855.66 | I5: 1241.1 | J5: 45781.47967 | K5: 218.01 | L5: A002
A6: A003 | B6: 31274.19 | C6: 2606.1825 | D6: 2178.11 | E6: 2091.67 | F6: 10223.2995 | G6: 197.9265969 | H6: 855.66 | I6: 1241.1 | J6: 48061.9561 | K6: 228.87 | L6: A003
A7: A004 | B7: 32062.3 | C7: 2671.858333 | D7: 2196.26 | E7: 2109.09 | F7: 10470.1139 | G7: 202.513259 | H7: 855.66 | I7: 1241.1 | J7: 49137.03716 | K7: 233.99 | L7: A004
A8: A005 | B8: 33042.62 | C8: 2753.551667 | D8: 2262.34 | E8: 2172.55 | F8: 10789.92809 | G8: 208.6935144 | H8: 855.66 | I8: 1241.1 | J8: 50572.8916 | K8: 240.82 | L8: A005
A9: A006 | B9: 35003.26 | C9: 2916.938333 | D9: 2394.51 | E9: 2299.47 | F9: 11429.55647 | G9: 221.0540809 | H9: 855.66 | I9: 1241.1 | J9: 53444.61055 | K9: 254.5 | L9: A006
A10: A007 | B10: 36387.25 | C10: 3032.270833 | D10: 2452.82 | E10: 2355.47 | F10: 11870.76941 | G10: 229.3973645 | H10: 855.66 | I10: 1241.1 | J10: 55392.46677 | K10: 263.77 | L10: A007
A11: A008 | B11: 37848.12 | C11: 3154.01 | D11: 2551.29 | E11: 2450.03 | F11: 12347.35316 | G11: 238.6071066 | H11: 855.66 | I11: 1241.1 | J11: 57532.16027 | K11: 273.96 | L11: A008
A12: A009 | B12: 40885.19 | C12: 3407.099167 | D12: 2756.02 | E12: 2646.63 | F12: 13338.14965 | G12: 257.753837 | H12: 855.66 | I12: 1241.1 | J12: 61980.50349 | K12: 295.15 | L12: A009
A13: A010 | B13: 42346.07 | C13: 3528.839167 | D13: 2854.5 | E13: 2741.2 | F13: 13814.73953 | G13: 266.9637462 | H13: 855.66 | I13: 1241.1 | J13: 64120.23327 | K13: 305.33 | L13: A010
A14: A011 | B14: 43307.17 | C14: 3608.930833 | D14: 2919.28 | E14: 2579.3 | F14: 14059.61441 | G14: 271.7748189 | H14: 855.66 | I14: 1241.1 | J14: 65233.89923 | K14: 310.64 | L14: A011
A15: A012 | B15: 44748.82 | C15: 3729.068333 | D15: 3016.46 | E15: 2665.16 | F15: 14527.64347 | G15: 280.8219051 | H15: 855.66 | I15: 1241.1 | J15: 67335.66538 | K15: 320.65 | L15: A012
A16: A013 | B16: 46190.47 | C16: 3849.205833 | D16: 3113.64 | E16: 2751.03 | F16: 14995.6756 | G16: 289.8690471 | H16: 855.66 | I16: 1241.1 | J16: 69437.44465 | K16: 330.65 | L16: A013
A17: A014 | B17: 47536.01 | C17: 3961.334167 | D17: 3204.34 | E17: 2831.17 | F17: 15432.50395 | G17: 298.3130091 | H17: 855.66 | I17: 1241.1 | J17: 71399.09696 | K17: 340 | L17: A014
A18: A015 | B18: 50515.42 | C18: 4209.618333 | D18: 3405.18 | E18: 3008.61 | F18: 16399.76279 | G18: 317.0103059 | H18: 855.66 | I18: 1241.1 | J18: 75742.7431 | K18: 360.68 | L18: A015
A19: A016 | B19: 53398.72 | C19: 4449.893333 | D19: 3599.54 | E19: 3180.34 | F19: 17335.82398 | G19: 335.1045341 | H19: 855.66 | I19: 1241.1 | J19: 79946.28852 | K19: 380.7 | L19: A016
A20: A017 | B20: 56282.02 | C20: 4690.168333 | D20: 3793.9 | E20: 3352.06 | F20: 18271.88211 | G20: 353.1987066 | H20: 855.66 | I20: 1241.1 | J20: 84149.82082 | K20: 400.71 | L20: A017
A21: A018 | B21: 59069.21 | C21: 4922.434167 | D21: 3981.78 | E21: 3518.06 | F21: 19176.73953 | G21: 370.6897549 | H21: 855.66 | I21: 1241.1 | J21: 88213.23928 | K21: 420.06 | L21: A018
A22: A019 | B22: 60126.42 | C22: 5010.535 | D22: 4053.05 | E22: 3581.03 | F22: 19519.96268 | G22: 377.3243442 | H22: 855.66 | I22: 1241.1 | J22: 89754.54702 | K22: 427.4 | L22: A019
A23: A020 | B23: 62048.62 | C23: 5170.718333 | D23: 4182.62 | E23: 3695.51 | F23: 20144.00143 | G23: 389.3871074 | H23: 855.66 | I23: 1241.1 | J23: 92556.89854 | K23: 440.75 | L23: A020
A24: A021 | B24: 63970.82 | C24: 5330.901667 | D24: 4312.19 | E24: 3810 | F24: 20768.04325 | G24: 401.4499262 | H24: 855.66 | I24: 1241.1 | J24: 95359.26317 | K24: 454.09 | L24: A021
A25: A022 | B25: 64451.37 | C25: 5370.9475 | D25: 4344.59 | E25: 3838.62 | F25: 20924.05294 | G25: 404.4656587 | H25: 855.66 | I25: 1241.1 | J25: 96059.85859 | K25: 457.43 | L25: A022
A26: A023 | B26: 66854.12 | C26: 5571.176667 | D26: 4506.55 | E26: 3981.72 | F26: 21704.10138 | G26: 419.5440987 | H26: 855.66 | I26: 1241.1 | J26: 99562.79547 | K26: 474.11 | L26: A023
A27: A024 | B27: 69737.42 | C27: 5811.451667 | D27: 4700.91 | E27: 4153.44 | F27: 22640.1595 | G27: 437.6382712 | H27: 855.66 | I27: 1241.1 | J27: 103766.3278 | K27: 494.13 | L27: A024
A28: A025 | B28: 72620.72 | C28: 6051.726667 | D28: 4895.27 | E28: 4325.17 | F28: 23576.2207 | G28: 455.7324995 | H28: 855.66 | I28: 1241.1 | J28: 107969.8732 | K28: 514.14 | L28: A025
A29: A026 | B29: 75504.02 | C29: 6292.001667 | D29: 5089.63 | E29: 4496.89 | F29: 24512.27882 | G29: 473.826672 | H29: 855.66 | I29: 1241.1 | J29: 112173.4055 | K29: 534.16 | L29: A026
A30: A027 | B30: 78387.32 | C30: 6532.276667 | D30: 5283.99 | E30: 4668.62 | F30: 25448.34002 | G30: 491.9209002 | H30: 855.66 | I30: 1241.1 | J30: 116376.9509 | K30: 554.18 | L30: A027

Sheet voorbeeld tijdsreg
A1: Sjabloon tijdsregistratie
A3: Projectcode | B3: ='In te vullen voorblad'!B13 -> 0
A4: Naam van het project | B4: ='In te vullen voorblad'!B12 -> ……………………………………
A6: Per personeelslid een sjabloon invullen.
A8: Enkel de groene velden invullen
A9: Naam personeelslid | B9: Mevr. Christine Janssens
A11: Korte omschrijving werkzaamheden per halve dag invullen | B11: dag | C11: maand | D11: jaartal | E11: 1= halve dag PDPO 0=niet PDPO
A13: leveranciers zoeken voor de restauratie | B13: 2 | C13: februari | D13: 2020 | E13: 1
A14: bezoek aan de te restaureren bakoven | B14: 2 | C14: februari | D14: 2020 | E14: 1
A15: verlof | B15: 3 | C15: februari | D15: 2020 | E15: 0
A16: verlof | B16: 3 | C16: februari | D16: 2020 | E16: 0
A17: niet PDPO | B17: 4 | C17: februari | D17: 2020 | E17: 0
A18: niet PDPO | B18: 4 | C18: februari | D18: 2020 | E18: 0
A19: verminderde prestaties | B19: 5 | C19: februari | D19: 2020 | E19: 0
A20: verminderde prestaties | B20: 5 | C20: februari | D20: 2020 | E20: 0
A21: PDPO project - leveranciers zoeken restauratie | B21: 6 | C21: februari | D21: 2020 | E21: 1
A22: niet PDPO | B22: 6 | C22: februari | D22: 2020 | E22: 0
A23: niet PDPO | B23: 9 | C23: februari | D23: 2020 | E23: 0
A24: niet PDPO | B24: 9 | C24: februari | D24: 2020 | E24: 0
A25: verlof | B25: 10 | C25: februari | D25: 2020 | E25: 0
A26: verlof | B26: 10 | C26: februari | D26: 2020 | E26: 0
A27: verminderde prestaties | B27: 11 | C27: februari | D27: 2020 | E27: 0
A28: verminderde prestaties | B28: 11 | C28: februari | D28: 2020 | E28: 0
A29: PDPO project - contact met leveranciers voor de restauratie | B29: 12 | C29: februari | D29: 2020 | E29: 1
A30: PDPO project - contact met leveranciers voor de restauratie | B30: 12 | C30: februari | D30: 2020 | E30: 1
A31: PDPO project - contact met leveranciers voor de restauratie | B31: 13 | C31: februari | D31: 2020 | E31: 1
A32: PDPO project - contact met leveranciers voor de restauratie | B32: 13 | C32: februari | D32: 2020 | E32: 1
A33: PDPO project - voorbereiding restauratie | B33: 16 | C33: februari | D33: 2020 | E33: 1
A34: PDPO project - voorbereiding restauratie | B34: 16 | C34: februari | D34: 2020 | E34: 1
A35: PDPO project - voorbereiding restauratie | B35: 17 | C35: februari | D35: 2020 | E35: 1
A36: niet PDPO | B36: 17 | C36: februari | D36: 2020 | E36: 0
A37: verminderde prestaties | B37: 18 | C37: februari | D37: 2020 | E37: 0
A38: verminderde prestaties | B38: 18 | C38: februari | D38: 2020 | E38: 0
A39: niet PDPO | B39: 19 | C39: februari | D39: 2020 | E39: 0
A40: niet PDPO | B40: 19 | C40: februari | D40: 2020 | E40: 0
A41: niet PDPO | B41: 20 | C41: februari | D41: 2020 | E41: 0
A42: PDPO project - voorbereiding restauratie bakoven | B42: 20 | C42: februari | D42: 2020 | E42: 1
A43: PDPO project - voorbereiding restauratie | B43: 23 | C43: februari | D43: 2020 | E43: 1
A44: PDPO project - voorbereiding restauratie | B44: 23 | C44: februari | D44: 2020 | E44: 1
A45: niet PDPO | B45: 24 | C45: februari | D45: 2020 | E45: 0
A46: niet PDPO | B46: 24 | C46: februari | D46: 2020 | E46: 0
A47: verminderde prestaties | B47: 25 | C47: februari | D47: 2020 | E47: 0
A48: verminderde prestaties | B48: 25 | C48: februari | D48: 2020 | E48: 0
A49: niet PDPO | B49: 26 | C49: februari | D49: 2020 | E49: 0
A50: niet PDPO | B50: 26 | C50: februari | D50: 2020 | E50: 0
A51: Ziekte | B51: 27 | C51: februari | D51: 2020 | E51: 0
A52: Ziekte | B52: 27 | C52: februari | D52: 2020 | E52: 0
A53: Totaal aantal halve dagen gewerkt voor deze maand | E53: =SUM(E13:E52) -> 13

Sheet Voorbeeld loonberek
A1: Sjabloon loonberekening
A4: Projectcode | B4: ='In te vullen voorblad'!B13 -> 0
A5: Naam van het project | B5: ='In te vullen voorblad'!B12 -> ……………………………………
A6: Per persoon: de naam - brutoloon - de periode (maand en jaartal) en het aantal halve dagen in te vullen.
A7: De looncode wordt automatisch opgezocht en moet niet zelf ingevuld worden.
A8: Enkel de groene vakken invullen!
A9: Het donkergroene vak overnemen in het tabblad facturen
A10: Naam personeelslid | B10: Voltijds brutoloon (5/5) | C10: De overeenkomstige dagkost | D10: Looncode | E10: Afwijkende looncode | F10: maand + jaartal | G10: aantal halve dagen in die maand gewerkt aan het project | H10: In te brengen personeelskost
A12: Christine Janssens | B12: 2500 | C12: =IF(E12=0,+IF(B12="","",+IF(B12<2028.27,179.06,IF(B12>=2028.27,VLOOKUP(B12,'waarden lonen'!C:K,9,TRUE)))),VLOOKUP(E12,'waarden lonen'!loonwijzer,11)) -> 218.01 | D12: =IF(E12=0,+IF(C12="","",VLOOKUP(C12,'waarden lonen'!K:L,2,FALSE)),"") -> A002 | F12: feb'20 | G12: 13 | H12: =+IF(C12="","",(G12/2)*C12) -> 1417.065 | I12: personeelslid wordt voor de eerste keer gedeclareerd
A13: Christine Janssens | B13: 2500 | C13: =IF(E13=0,+IF(B13="","",+IF(B13<2028.27,179.06,IF(B13>=2028.27,VLOOKUP(B13,'waarden lonen'!C:K,9,TRUE)))),VLOOKUP(E13,'waarden lonen'!loonwijzer,11)) -> 218.01 | D13: =IF(E13=0,+IF(C13="","",VLOOKUP(C13,'waarden lonen'!K:L,2,FALSE)),"") -> A002 | F13: 2020-08-01 | G13: 10 | H13: 1090.05
C14: =IF(E14=0,+IF(B14="","",+IF(B14<2028.27,179.06,IF(B14>=2028.27,VLOOKUP(B14,'waarden lonen'!C:K,9,TRUE)))),VLOOKUP(E14,'waarden lonen'!loonwijzer,11)) ->  | D14: =IF(E14=0,+IF(C14="","",VLOOKUP(C14,'waarden lonen'!K:L,2,FALSE)),"") -> 
C15: =IF(E15=0,+IF(B15="","",+IF(B15<2028.27,179.06,IF(B15>=2028.27,VLOOKUP(B15,'waarden lonen'!C:K,9,TRUE)))),VLOOKUP(E15,'waarden lonen'!loonwijzer,11)) ->  | D15: =IF(E15=0,+IF(C15="","",VLOOKUP(C15,'waarden lonen'!K:L,2,FALSE)),"") -> 
C16: =IF(E16=0,+IF(B16="","",+IF(B16<2028.27,179.06,IF(B16>=2028.27,VLOOKUP(B16,'waarden lonen'!C:K,9,TRUE)))),VLOOKUP(E16,'waarden lonen'!loonwijzer,11)) ->  | D16: =IF(E16=0,+IF(C16="","",VLOOKUP(C16,'waarden lonen'!K:L,2,FALSE)),"") -> 
C17: =IF(E17=0,+IF(B17="","",+IF(B17<2028.27,179.06,IF(B17>=2028.27,VLOOKUP(B17,'waarden lonen'!C:K,9,TRUE)))),VLOOKUP(E17,'waarden lonen'!loonwijzer,11)) ->  | D17: =IF(E17=0,+IF(C17="","",VLOOKUP(C17,'waarden lonen'!K:L,2,FALSE)),"") -> 
C18: =IF(E18=0,+IF(B18="","",+IF(B18<2028.27,179.06,IF(B18>=2028.27,VLOOKUP(B18,'waarden lonen'!C:K,9,TRUE)))),VLOOKUP(E18,'waarden lonen'!loonwijzer,11)) ->  | D18: =IF(E18=0,+IF(C18="","",VLOOKUP(C18,'waarden lonen'!K:L,2,FALSE)),"") -> 
A19: Totale loonkost - het totaal bedrag per persoon overnemen in de overzichtslijst met facturen / kosten | H19: =SUM(H12:H18) -> 2507.115
A20: Jan Janssens | B20: 2242.99 | C20: =IF(E20=0,+IF(B20="","",+IF(B20<2028.27,179.06,IF(B20>=2028.27,VLOOKUP(B20,'waarden lonen'!C:K,9,TRUE)))),VLOOKUP(E20,'waarden lonen'!loonwijzer,11)) -> 233.99 | D20: =IF(E20=0,+IF(C20="","",VLOOKUP(C20,'waarden lonen'!K:L,2,FALSE)),"") ->  | E20: A004 | F20: 2020-07-01 | G20: 8 | H20: =+IF(C20="","",(G20/2)*C20) -> 935.96 | I20: Personeelslid werd reeds gedeclareerd, gebruik de vorige looncode
C21: =IF(E21=0,+IF(B21="","",+IF(B21<2028.27,179.06,IF(B21>=2028.27,VLOOKUP(B21,'waarden lonen'!C:K,9,TRUE)))),VLOOKUP(E21,'waarden lonen'!loonwijzer,11)) ->  | D21: =IF(E21=0,+IF(C21="","",VLOOKUP(C21,'waarden lonen'!K:L,2,FALSE)),"") -> 
C22: =IF(E22=0,+IF(B22="","",+IF(B22<2028.27,179.06,IF(B22>=2028.27,VLOOKUP(B22,'waarden lonen'!C:K,9,TRUE)))),VLOOKUP(E22,'waarden lonen'!loonwijzer,11)) ->  | D22: =IF(E22=0,+IF(C22="","",VLOOKUP(C22,'waarden lonen'!K:L,2,FALSE)),"") -> 
C23: =IF(E23=0,+IF(B23="","",+IF(B23<2028.27,179.06,IF(B23>=2028.27,VLOOKUP(B23,'waarden lonen'!C:K,9,TRUE)))),VLOOKUP(E23,'waarden lonen'!loonwijzer,11)) ->  | D23: =IF(E23=0,+IF(C23="","",VLOOKUP(C23,'waarden lonen'!K:L,2,FALSE)),"") -> 
C24: =IF(E24=0,+IF(B24="","",+IF(B24<2028.27,179.06,IF(B24>=2028.27,VLOOKUP(B24,'waarden lonen'!C:K,9,TRUE)))),VLOOKUP(E24,'waarden lonen'!loonwijzer,11)) ->  | D24: =IF(E24=0,+IF(C24="","",VLOOKUP(C24,'waarden lonen'!K:L,2,FALSE)),"") -> 
C25: =IF(E25=0,+IF(B25="","",+IF(B25<2028.27,179.06,IF(B25>=2028.27,VLOOKUP(B25,'waarden lonen'!C:K,9,TRUE)))),VLOOKUP(E25,'waarden lonen'!loonwijzer,11)) ->  | D25: =IF(E25=0,+IF(C25="","",VLOOKUP(C25,'waarden lonen'!K:L,2,FALSE)),"") -> 
C26: =IF(E26=0,+IF(B26="","",+IF(B26<2028.27,179.06,IF(B26>=2028.27,VLOOKUP(B26,'waarden lonen'!C:K,9,TRUE)))),VLOOKUP(E26,'waarden lonen'!loonwijzer,11)) ->  | D26: =IF(E26=0,+IF(C26="","",VLOOKUP(C26,'waarden lonen'!K:L,2,FALSE)),"") -> 
A27: Totale loonkost - het totaal bedrag per persoon overnemen in de overzichtslijst met facturen / kosten | H27: =SUM(H20:H26) -> 935.96
C28: =IF(E28=0,+IF(B28="","",+IF(B28<2028.27,179.06,IF(B28>=2028.27,VLOOKUP(B28,'waarden lonen'!C:K,9,TRUE)))),VLOOKUP(E28,'waarden lonen'!loonwijzer,11)) ->  | D28: =IF(E28=0,+IF(C28="","",VLOOKUP(C28,'waarden lonen'!K:L,2,FALSE)),"") ->  | H28: =+IF(C28="","",(G28/2)*C28) -> 
C29: =IF(E29=0,+IF(B29="","",+IF(B29<2028.27,179.06,IF(B29>=2028.27,VLOOKUP(B29,'waarden lonen'!C:K,9,TRUE)))),VLOOKUP(E29,'waarden lonen'!loonwijzer,11)) ->  | D29: =IF(E29=0,+IF(C29="","",VLOOKUP(C29,'waarden lonen'!K:L,2,FALSE)),"") -> 
C30: =IF(E30=0,+IF(B30="","",+IF(B30<2028.27,179.06,IF(B30>=2028.27,VLOOKUP(B30,'waarden lonen'!C:K,9,TRUE)))),VLOOKUP(E30,'waarden lonen'!loonwijzer,11)) ->  | D30: =IF(E30=0,+IF(C30="","",VLOOKUP(C30,'waarden lonen'!K:L,2,FALSE)),"") -> 
C31: =IF(E31=0,+IF(B31="","",+IF(B31<2028.27,179.06,IF(B31>=2028.27,VLOOKUP(B31,'waarden lonen'!C:K,9,TRUE)))),VLOOKUP(E31,'waarden lonen'!loonwijzer,11)) ->  | D31: =IF(E31=0,+IF(C31="","",VLOOKUP(C31,'waarden lonen'!K:L,2,FALSE)),"") -> 
C32: =IF(E32=0,+IF(B32="","",+IF(B32<2028.27,179.06,IF(B32>=2028.27,VLOOKUP(B32,'waarden lonen'!C:K,9,TRUE)))),VLOOKUP(E32,'waarden lonen'!loonwijzer,11)) ->  | D32: =IF(E32=0,+IF(C32="","",VLOOKUP(C32,'waarden lonen'!K:L,2,FALSE)),"") -> 
C33: =IF(E33=0,+IF(B33="","",+IF(B33<2028.27,179.06,IF(B33>=2028.27,VLOOKUP(B33,'waarden lonen'!C:K,9,TRUE)))),VLOOKUP(E33,'waarden lonen'!loonwijzer,11)) ->  | D33: =IF(E33=0,+IF(C33="","",VLOOKUP(C33,'waarden lonen'!K:L,2,FALSE)),"") -> 
C34: =IF(E34=0,+IF(B34="","",+IF(B34<2028.27,179.06,IF(B34>=2028.27,VLOOKUP(B34,'waarden lonen'!C:K,9,TRUE)))),VLOOKUP(E34,'waarden lonen'!loonwijzer,11)) ->  | D34: =IF(E34=0,+IF(C34="","",VLOOKUP(C34,'waarden lonen'!K:L,2,FALSE)),"") -> 
C35: =IF(E35=0,+IF(B35="","",+IF(B35<2028.27,179.06,IF(B35>=2028.27,VLOOKUP(B35,'waarden lonen'!C:K,9,TRUE)))),VLOOKUP(E35,'waarden lonen'!loonwijzer,11)) ->  | D35: =IF(E35=0,+IF(C35="","",VLOOKUP(C35,'waarden lonen'!K:L,2,FALSE)),"") -> 
A36: Totale loonkost - het totaal bedrag per persoon overnemen in de overzichtslijst met facturen / kosten | H36: =SUM(H28:H35) -> 0
C37: =IF(E37=0,+IF(B37="","",+IF(B37<2028.27,179.06,IF(B37>=2028.27,VLOOKUP(B37,'waarden lonen'!C:K,9,TRUE)))),VLOOKUP(E37,'waarden lonen'!loonwijzer,11)) ->  | D37: =IF(E37=0,+IF(C37="","",VLOOKUP(C37,'waarden lonen'!K:L,2,FALSE)),"") ->  | H37: =+IF(C37="","",(G37/2)*C37) -> 
C38: =IF(E38=0,+IF(B38="","",+IF(B38<2028.27,179.06,IF(B38>=2028.27,VLOOKUP(B38,'waarden lonen'!C:K,9,TRUE)))),VLOOKUP(E38,'waarden lonen'!loonwijzer,11)) ->  | D38: =IF(E38=0,+IF(C38="","",VLOOKUP(C38,'waarden lonen'!K:L,2,FALSE)),"") -> 
C39: =IF(E39=0,+IF(B39="","",+IF(B39<2028.27,179.06,IF(B39>=2028.27,VLOOKUP(B39,'waarden lonen'!C:K,9,TRUE)))),VLOOKUP(E39,'waarden lonen'!loonwijzer,11)) ->  | D39: =IF(E39=0,+IF(C39="","",VLOOKUP(C39,'waarden lonen'!K:L,2,FALSE)),"") -> 
C40: =IF(E40=0,+IF(B40="","",+IF(B40<2028.27,179.06,IF(B40>=2028.27,VLOOKUP(B40,'waarden lonen'!C:K,9,TRUE)))),VLOOKUP(E40,'waarden lonen'!loonwijzer,11)) ->  | D40: =IF(E40=0,+IF(C40="","",VLOOKUP(C40,'waarden lonen'!K:L,2,FALSE)),"") -> 
C41: =IF(E41=0,+IF(B41="","",+IF(B41<2028.27,179.06,IF(B41>=2028.27,VLOOKUP(B41,'waarden lonen'!C:K,9,TRUE)))),VLOOKUP(E41,'waarden lonen'!loonwijzer,11)) ->  | D41: =IF(E41=0,+IF(C41="","",VLOOKUP(C41,'waarden lonen'!K:L,2,FALSE)),"") -> 
C42: =IF(E42=0,+IF(B42="","",+IF(B42<2028.27,179.06,IF(B42>=2028.27,VLOOKUP(B42,'waarden lonen'!C:K,9,TRUE)))),VLOOKUP(E42,'waarden lonen'!loonwijzer,11)) ->  | D42: =IF(E42=0,+IF(C42="","",VLOOKUP(C42,'waarden lonen'!K:L,2,FALSE)),"") -> 
C43: =IF(E43=0,+IF(B43="","",+IF(B43<2028.27,179.06,IF(B43>=2028.27,VLOOKUP(B43,'waarden lonen'!C:K,9,TRUE)))),VLOOKUP(E43,'waarden lonen'!loonwijzer,11)) ->  | D43: =IF(E43=0,+IF(C43="","",VLOOKUP(C43,'waarden lonen'!K:L,2,FALSE)),"") -> 
A44: Totale loonkost - het totaal bedrag per persoon overnemen in de overzichtslijst met facturen / kosten | H44: =SUM(H37:H43) -> 0
C45: =IF(E45=0,+IF(B45="","",+IF(B45<2028.27,179.06,IF(B45>=2028.27,VLOOKUP(B45,'waarden lonen'!C:K,9,TRUE)))),VLOOKUP(E45,'waarden lonen'!loonwijzer,11)) ->  | D45: =IF(E45=0,+IF(C45="","",VLOOKUP(C45,'waarden lonen'!K:L,2,FALSE)),"") ->  | H45: =+IF(C45="","",(G45/2)*C45) -> 
C46: =IF(E46=0,+IF(B46="","",+IF(B46<2028.27,179.06,IF(B46>=2028.27,VLOOKUP(B46,'waarden lonen'!C:K,9,TRUE)))),VLOOKUP(E46,'waarden lonen'!loonwijzer,11)) ->  | D46: =IF(E46=0,+IF(C46="","",VLOOKUP(C46,'waarden lonen'!K:L,2,FALSE)),"") -> 
C47: =IF(E47=0,+IF(B47="","",+IF(B47<2028.27,179.06,IF(B47>=2028.27,VLOOKUP(B47,'waarden lonen'!C:K,9,TRUE)))),VLOOKUP(E47,'waarden lonen'!loonwijzer,11)) ->  | D47: =IF(E47=0,+IF(C47="","",VLOOKUP(C47,'waarden lonen'!K:L,2,FALSE)),"") -> 
C48: =IF(E48=0,+IF(B48="","",+IF(B48<2028.27,179.06,IF(B48>=2028.27,VLOOKUP(B48,'waarden lonen'!C:K,9,TRUE)))),VLOOKUP(E48,'waarden lonen'!loonwijzer,11)) ->  | D48: =IF(E48=0,+IF(C48="","",VLOOKUP(C48,'waarden lonen'!K:L,2,FALSE)),"") -> 
C49: =IF(E49=0,+IF(B49="","",+IF(B49<2028.27,179.06,IF(B49>=2028.27,VLOOKUP(B49,'waarden lonen'!C:K,9,TRUE)))),VLOOKUP(E49,'waarden lonen'!loonwijzer,11)) ->  | D49: =IF(E49=0,+IF(C49="","",VLOOKUP(C49,'waarden lonen'!K:L,2,FALSE)),"") -> 
C50: =IF(E50=0,+IF(B50="","",+IF(B50<2028.27,179.06,IF(B50>=2028.27,VLOOKUP(B50,'waarden lonen'!C:K,9,TRUE)))),VLOOKUP(E50,'waarden lonen'!loonwijzer,11)) ->  | D50: =IF(E50=0,+IF(C50="","",VLOOKUP(C50,'waarden lonen'!K:L,2,FALSE)),"") -> 
C51: =IF(E51=0,+IF(B51="","",+IF(B51<2028.27,179.06,IF(B51>=2028.27,VLOOKUP(B51,'waarden lonen'!C:K,9,TRUE)))),VLOOKUP(E51,'waarden lonen'!loonwijzer,11)) ->  | D51: =IF(E51=0,+IF(C51="","",VLOOKUP(C51,'waarden lonen'!K:L,2,FALSE)),"") -> 
A52: Totale loonkost - het totaal bedrag per persoon overnemen in de overzichtslijst met facturen / kosten | H52: =SUM(H45:H51) -> 0
C53: =IF(E53=0,+IF(B53="","",+IF(B53<2028.27,179.06,IF(B53>=2028.27,VLOOKUP(B53,'waarden lonen'!C:K,9,TRUE)))),VLOOKUP(E53,'waarden lonen'!loonwijzer,11)) ->  | D53: =IF(E53=0,+IF(C53="","",VLOOKUP(C53,'waarden lonen'!K:L,2,FALSE)),"") ->  | H53: =+IF(C53="","",(G53/2)*C53) -> 
C54: =IF(E54=0,+IF(B54="","",+IF(B54<2028.27,179.06,IF(B54>=2028.27,VLOOKUP(B54,'waarden lonen'!C:K,9,TRUE)))),VLOOKUP(E54,'waarden lonen'!loonwijzer,11)) ->  | D54: =IF(E54=0,+IF(C54="","",VLOOKUP(C54,'waarden lonen'!K:L,2,FALSE)),"") -> 
C55: =IF(E55=0,+IF(B55="","",+IF(B55<2028.27,179.06,IF(B55>=2028.27,VLOOKUP(B55,'waarden lonen'!C:K,9,TRUE)))),VLOOKUP(E55,'waarden lonen'!loonwijzer,11)) ->  | D55: =IF(E55=0,+IF(C55="","",VLOOKUP(C55,'waarden lonen'!K:L,2,FALSE)),"") -> 
C56: =IF(E56=0,+IF(B56="","",+IF(B56<2028.27,179.06,IF(B56>=2028.27,VLOOKUP(B56,'waarden lonen'!C:K,9,TRUE)))),VLOOKUP(E56,'waarden lonen'!loonwijzer,11)) ->  | D56: =IF(E56=0,+IF(C56="","",VLOOKUP(C56,'waarden lonen'!K:L,2,FALSE)),"") -> 
C57: =IF(E57=0,+IF(B57="","",+IF(B57<2028.27,179.06,IF(B57>=2028.27,VLOOKUP(B57,'waarden lonen'!C:K,9,TRUE)))),VLOOKUP(E57,'waarden lonen'!loonwijzer,11)) ->  | D57: =IF(E57=0,+IF(C57="","",VLOOKUP(C57,'waarden lonen'!K:L,2,FALSE)),"") -> 
C58: =IF(E58=0,+IF(B58="","",+IF(B58<2028.27,179.06,IF(B58>=2028.27,VLOOKUP(B58,'waarden lonen'!C:K,9,TRUE)))),VLOOKUP(E58,'waarden lonen'!loonwijzer,11)) ->  | D58: =IF(E58=0,+IF(C58="","",VLOOKUP(C58,'waarden lonen'!K:L,2,FALSE)),"") -> 
C59: =IF(E59=0,+IF(B59="","",+IF(B59<2028.27,179.06,IF(B59>=2028.27,VLOOKUP(B59,'waarden lonen'!C:K,9,TRUE)))),VLOOKUP(E59,'waarden lonen'!loonwijzer,11)) ->  | D59: =IF(E59=0,+IF(C59="","",VLOOKUP(C59,'waarden lonen'!K:L,2,FALSE)),"") -> 
C60: =IF(E60=0,+IF(B60="","",+IF(B60<2028.27,179.06,IF(B60>=2028.27,VLOOKUP(B60,'waarden lonen'!C:K,9,TRUE)))),VLOOKUP(E60,'waarden lonen'!loonwijzer,11)) ->  | D60: =IF(E60=0,+IF(C60="","",VLOOKUP(C60,'waarden lonen'!K:L,2,FALSE)),"") -> 
A61: Totale loonkost - het totaal bedrag per persoon overnemen in de overzichtslijst met facturen / kosten | H61: =SUM(H53:H60) -> 0
A63: Motivatie afwijkende looncode
A64: Naam personeelslid | B64: Motivatie
A65: Jan Janssens | B65: toe te voegen

Sheet .
E2: json
C3: Investeringskosten | E3: {
C4: Personeelskosten | E4: "
C5: Werkingskosten | E5: :
C6: Externe prestaties | E6: }
C7: Bijdrage in natura | E7: ,
C8: Inkomsten | E8: [
E9: ]
C15: ='In te vullen voorblad'!B19 -> XXXXX
C16: ='In te vullen voorblad'!B28 -> ……………………………………
C17: ='In te vullen voorblad'!B29 -> ……………………………………
C18: ='In te vullen voorblad'!B30 -> ……………………………………
C19: ='In te vullen voorblad'!B31 -> ……………………………………
C20: ='In te vullen voorblad'!B32 -> ……………………………………
E26: {"VolgNummer":"1","":"""Leverancier":"""Onderwerp":"A007""Factuurdatum":"jan-jun 2018""TotaalBedrag":"137,772""MeetelPercentage":"1""AangevraagdProjectbedrag":"137,772""KostenCategorie":"Personeelskost""Promotor":"Plattelandscentrum Meetjesland vzw""CofinancieringPercentage":"0,65""TotaleCofinanciering":"89,5518"}
